bitfinex-derivatives/quotes_BTCF0:USTF0_20240820
["timestamp","ask_amount","ask_price","bid_price","bid_amount"]
[1724150456057,0.00224704,60745.0,60744.0,1.39384031]
[1724150456364,0.06546087,60758.0,60757.0,0.065805]
[1724150456658,0.065804,60758.0,60757.0,0.426605]
[1724150456853,0.12424067,60758.0,60757.0,0.426605]
[1724150457165,0.25496452,60758.0,60757.0,0.426605]
[1724150457460,0.12424067,60758.0,60757.0,0.43112731]
[1724150457656,0.05843667,60758.0,60757.0,0.43112731]
[1724150457857,0.07343667,60758.0,60757.0,0.43112731]
[1724150458457,0.20413289,60758.0,60757.0,0.43112731]
[1724150458654,0.07343667,60758.0,60757.0,0.43112731]
[1724150459850,0.20413289,60758.0,60757.0,0.43112731]
[1724150460057,0.07343667,60758.0,60757.0,0.43112731]
[1724150460257,0.20410253,60758.0,60757.0,0.43112731]
[1724150460458,0.07343667,60758.0,60757.0,0.43112731]
[1724150460659,0.13924067,60758.0,60757.0,0.43112731]
[1724150460860,0.26990258,60758.0,60757.0,0.43112731]
[1724150461058,0.26990258,60758.0,60757.0,0.43953491]
[1724150461559,0.13924067,60758.0,60757.0,0.43953491]
[1724150461861,0.13924067,60758.0,60757.0,0.43112731]
[1724150463874,0.080804,60758.0,60757.0,0.43112731]
[1724150473574,0.14612158,60758.0,60757.0,0.43112731]
[1724150475176,0.080804,60758.0,60757.0,0.43112731]
[1724150478572,0.194604,60758.0,60757.0,0.43112731]
[1724150478973,0.22127077,60758.0,60757.0,0.43112731]
[1724150484379,0.31924715,60758.0,60757.0,0.43112731]
[1724150485467,0.22127077,60758.0,60757.0,0.43112731]
[1724150485671,0.31956331,60758.0,60757.0,0.43112731]
[1724150485885,0.25304144,60758.0,60757.0,0.43112731]
[1724150486077,0.22637444,60758.0,60757.0,0.43112731]
[1724150486381,0.25304118,60758.0,60757.0,0.43112731]
[1724150486980,0.194604,60758.0,60757.0,0.43112731]
[1724150489185,0.22127073,60758.0,60757.0,0.43112731]
[1724150489779,0.194604,60758.0,60757.0,0.43112731]
[1724150491495,0.27651777,60758.0,60757.0,0.43112731]
[1724150492286,0.16271777,60758.0,60757.0,0.43112731]
[1724150492489,0.080804,60758.0,60757.0,0.43112731]
[1724150492689,0.015,60758.0,60757.0,0.43112731]
[1724150492883,0.015,60758.0,60757.0,0.49678346]
[1724150493590,0.015,60758.0,60757.0,0.43112731]
[1724150494992,0.015,60758.0,60757.0,0.49678346]
[1724150495192,0.21071377,60758.0,60757.0,0.43112731]
[1724150496785,0.27651777,60758.0,60757.0,0.43112731]
[1724150497092,0.22127141,60758.0,60757.0,0.43112731]
[1724150499491,0.194604,60758.0,60757.0,0.43112731]
[1724150499885,0.22127159,60758.0,60757.0,0.43112731]
[1724150500092,0.194604,60758.0,60757.0,0.43112731]
[1724150501292,0.22127153,60758.0,60757.0,0.43112731]
[1724150502491,0.25304339,60758.0,60757.0,0.43112731]
[1724150504793,0.25304378,60758.0,60757.0,0.43112731]
[1724150506992,0.22127193,60758.0,60757.0,0.43112731]
[1724150508606,0.25304321,60758.0,60757.0,0.43112731]
[1724150509096,0.22127193,60758.0,60757.0,0.43112731]
[1724150509697,0.194604,60758.0,60757.0,0.43112731]
[1724150510697,0.194604,60758.0,60757.0,0.48048187]
[1724150511397,0.194604,60758.0,60757.0,0.43112731]
[1724150511598,0.194604,60758.0,60757.0,0.48048187]
[1724150511795,0.194604,60758.0,60757.0,0.43112731]
[1724150512101,0.194604,60758.0,60757.0,0.48048187]
[1724150513403,0.194604,60758.0,60757.0,0.48048061]
[1724150513799,0.22127162,60758.0,60757.0,0.43112731]
[1724150517106,0.2530431,60758.0,60757.0,0.43112731]
[1724150518013,0.06581,60752.0,60746.0,0.0493533]
[1724150518199,0.3696691,60752.0,60741.0,0.0483]
[1724150518393,0.50030427,60752.0,60745.0,0.008755]
[1724150518592,4.31059828,60752.0,60745.0,0.008755]
[1724150519205,4.17996311,60752.0,60745.0,0.008755]
[1724150519591,4.25415399,60752.0,60745.0,0.008755]
[1724150519997,4.25515399,60752.0,60751.0,0.00324704]
[1724150520795,4.05153246,60752.0,60751.0,0.00324704]
[1724150521000,0.28153246,60752.0,60751.0,0.00324704]
[1724150521804,0.28153241,60752.0,60751.0,0.00324704]
[1724150522000,0.16773241,60752.0,60751.0,0.00324704]
[1724150523211,0.1995084,60752.0,60751.0,0.00324704]
[1724150524311,0.07525049,60752.0,60751.0,0.06905804]
[1724150526107,0.06681,60752.0,60751.0,0.06905804]
[1724150526299,0.13216694,60752.0,60751.0,0.06905804]
[1724150526702,0.13216694,60752.0,60751.0,0.16351134]
[1724150527209,0.06681,60752.0,60751.0,0.16351134]
[1724150527412,0.13216694,60752.0,60751.0,0.16351134]
[1724150527613,0.06681,60752.0,60751.0,0.16351134]
[1724150527810,0.001,60752.0,60751.0,0.11415804]
[1724150532213,0.001,60752.0,60751.0,0.1634483]
[1724150534408,0.001,60752.0,60751.0,0.11415804]
[1724150535110,0.001,60752.0,60751.0,0.5242483]
[1724150536018,0.001,60752.0,60751.0,1.24255804]
[1724150537815,0.001,60752.0,60751.0,1.30836904]
[1724150539421,0.05002397,60752.0,60751.0,1.30836904]
[1724150540111,0.05002397,60752.0,60751.0,1.37402519]
[1724150540518,0.001,60752.0,60751.0,1.37402519]
[1724150544513,0.001,60752.0,60751.0,0.88022519]
[1724150544710,0.001,60752.0,60751.0,1.37402519]
[1724150545225,0.001,60752.0,60751.0,1.30836904]
[1724150545421,0.001,60752.0,60751.0,1.3740825]
[1724150546526,0.001,60752.0,60751.0,0.8802825]
[1724150546721,0.001,60752.0,60751.0,0.81456904]
[1724150549927,0.06640767,60752.0,60751.0,0.81456904]
[1724150550123,0.06640767,60752.0,60751.0,0.86385135]
[1724150550424,0.001,60752.0,60751.0,0.86385135]
[1724150550930,0.001,60752.0,60751.0,0.84028561]
[1724150551519,0.001,60752.0,60751.0,0.88956792]
[1724150551717,0.001,60752.0,60751.0,0.84028561]
[1724150551718,0.06640767,60752.0,60751.0,0.84028561]
[1724150552931,0.06640767,60752.0,60751.0,0.81456904]
[1724150553132,0.09058222,60758.0,60751.0,1.66827461]
[1724150553320,0.06542993,60759.0,60758.0,0.0658]
[1724150553520,0.06542993,60759.0,60758.0,0.3772]
[1724150553724,0.06542993,60761.0,60760.0,0.065798]
[1724150554031,0.06542993,60761.0,60760.0,0.710398]
[1724150554328,0.19558178,60761.0,60757.0,0.00096]
[1724150554527,0.19558178,60761.0,60757.0,0.04929665]
[1724150554528,0.1796,60758.0,60757.0,0.04929665]
[1724150554732,0.1138,60758.0,60755.0,0.04929665]
[1724150555035,0.06543217,60756.0,60754.0,0.3608]
[1724150555425,0.06543217,60755.0,60754.0,0.3608]
[1724150555726,0.06543217,60755.0,60754.0,0.3865184]
[1724150556428,0.13123617,60755.0,60754.0,0.45224727]
[1724150556729,0.13123617,60755.0,60754.0,0.42852887]
[1724150556920,0.13223617,60755.0,60754.0,0.45424724]
[1724150557118,0.13223617,60755.0,60754.0,0.42852887]
[1724150557523,0.13323617,60755.0,60754.0,0.43652887]
[1724150558436,0.067804,60755.0,60754.0,0.39651753]
[1724150560326,0.181604,60755.0,60754.0,0.39651753]
[1724150560833,0.181604,60755.0,60754.0,0.3708]
[1724150561138,0.181604,60755.0,60754.0,0.39651712]
[1724150562437,0.002,60755.0,60754.0,1.25145362]
[1724150562632,0.04910986,60760.0,60759.0,0.065799]
[1724150562833,0.13147421,60764.0,60759.0,0.68184962]
[1724150562834,0.04910986,60761.0,60759.0,0.68184962]
[1724150563138,0.04910986,60761.0,60760.0,0.29907095]
[1724150563329,0.04910986,60761.0,60760.0,0.29905412]
[1724150563531,0.04910986,60762.0,60761.0,0.065797]
[1724150563725,0.04910986,60763.0,60762.0,0.065796]
[1724150563934,0.04910986,60763.0,60762.0,0.09151312]
[1724150564233,0.00024704,60764.0,60763.0,0.065793]
[1724150564435,0.00024704,60764.0,60763.0,0.09151012]
[1724150565132,0.00024704,60764.0,60763.0,0.09150444]
[1724150565736,0.00024704,60764.0,60763.0,0.09550444]
[1724150566538,0.00024704,60764.0,60763.0,0.10442385]
[1724150567244,0.00024704,60764.0,60763.0,0.1044239]
[1724150569337,0.06543217,60766.0,60763.0,0.7481439]
[1724150569540,0.06543217,60767.0,60766.0,0.06579]
[1724150569739,0.06543217,60767.0,60766.0,0.36530149]
[1724150569936,0.06543217,60767.0,60766.0,0.33959]
[1724150570141,0.06543217,60768.0,60767.0,0.065789]
[1724150570344,0.06543217,60769.0,60768.0,0.065788]
[1724150570927,0.06543217,60769.0,60768.0,0.09149781]
[1724150571737,0.06643217,60769.0,60768.0,0.09149781]
[1724150571932,0.001,60769.0,60768.0,0.065788]
[1724150572342,0.005,60769.0,60768.0,0.065788]
[1724150573435,0.005,60769.0,60768.0,0.426588]
[1724150573436,0.0539653,60769.0,60768.0,0.426588]
[1724150573846,0.005,60769.0,60768.0,0.4522966]
[1724150575343,0.005,60769.0,60768.0,0.426588]
[1724150575344,0.05394745,60769.0,60768.0,0.426588]
[1724150576836,0.05394745,60769.0,60768.0,0.492376]
[1724150577441,0.005,60769.0,60768.0,0.55800038]
[1724150578630,0.005,60769.0,60768.0,0.55790485]
[1724150578857,0.005,60769.0,60768.0,0.492376]
[1724150579235,0.005,60769.0,60768.0,0.606176]
[1724150579435,0.005,60769.0,60768.0,0.766176]
[1724150579632,0.005,60769.0,60768.0,0.83170574]
[1724150580035,0.005,60769.0,60768.0,0.766176]
[1724150582449,0.00024704,60773.0,60772.0,0.065784]
[1724150582637,0.00024704,60773.0,60772.0,0.74953168]
[1724150583041,0.00024704,60773.0,60772.0,0.63573168]
[1724150583243,0.00024704,60773.0,60772.0,0.74953168]
[1724150583949,0.00024704,60773.0,60772.0,0.700384]
[1724150584649,0.00024704,60773.0,60772.0,0.701384]
[1724150584839,0.04090287,60773.0,60772.0,0.702384]
[1724150585037,0.04090286,60773.0,60772.0,0.702384]
[1724150585750,0.02690286,60773.0,60772.0,0.700384]
[1724150585947,0.02690286,60773.0,60772.0,0.705384]
[1724150587052,0.03562418,60773.0,60772.0,0.705384]
[1724150587245,0.10700716,60773.0,60772.0,0.771168]
[1724150587446,0.03562418,60773.0,60772.0,0.771168]
[1724150587648,0.03562418,60773.0,60772.0,0.7801274]
[1724150587944,0.10689893,60773.0,60772.0,0.7801274]
[1724150588249,0.12483343,60773.0,60772.0,0.7801274]
[1724150588454,0.02690286,60773.0,60772.0,0.7801274]
[1724150588958,0.09820471,60773.0,60772.0,0.7801274]
[1724150589452,0.02690286,60773.0,60772.0,0.7143434]
[1724150589646,0.02690255,60773.0,60772.0,0.7143434]
[1724150589858,0.09823242,60773.0,60772.0,0.7801274]
[1724150590042,0.09823242,60773.0,60772.0,0.7143434]
[1724150590244,0.02690255,60773.0,60772.0,0.7143434]
[1724150590445,0.12488793,60773.0,60772.0,0.7801274]
[1724150591151,0.02690255,60773.0,60772.0,0.7801274]
[1724150591351,0.02690255,60773.0,60772.0,0.7143434]
[1724150591655,0.09830308,60773.0,60772.0,0.7143434]
[1724150591850,0.09830308,60773.0,60772.0,0.7801274]
[1724150592352,0.02690255,60773.0,60772.0,0.7801274]
[1724150592651,0.00024704,60773.0,60772.0,0.7801274]
[1724150593555,0.00024704,60773.0,60772.0,0.7143434]
[1724150594246,0.00024704,60773.0,60772.0,0.86235073]
[1724150594647,0.00024704,60773.0,60772.0,0.98763123]
[1724150594849,0.00024704,60773.0,60772.0,0.90540742]
[1724150597250,0.00024704,60773.0,60772.0,0.83962342]
[1724150597455,0.00024704,60773.0,60772.0,0.72582342]
[1724150597658,0.00024704,60773.0,60772.0,0.90540742]
[1724150598157,0.00024704,60773.0,60772.0,0.98751982]
[1724150598960,0.00024704,60773.0,60772.0,0.8622398]
[1724150599253,0.00024704,60773.0,60772.0,0.98752283]
[1724150599452,0.02690207,60773.0,60772.0,0.7801274]
[1724150599659,0.05865855,60773.0,60772.0,0.7801274]
[1724150600757,0.02690207,60773.0,60772.0,0.7801274]
[1724150603054,0.02690207,60773.0,60772.0,0.7791274]
[1724150603253,0.02790207,60773.0,60772.0,0.7861274]
[1724150603557,0.02790088,60773.0,60772.0,0.7861274]
[1724150604460,0.02790088,60773.0,60772.0,0.8118326]
[1724150604767,0.02790088,60773.0,60772.0,0.6980326]
[1724150605057,0.02790088,60773.0,60772.0,1.1726326]
[1724150605659,0.05965581,60773.0,60772.0,1.1726326]
[1724150607352,0.05965581,60773.0,60772.0,1.1469274]
[1724150607563,0.00124704,60773.0,60772.0,1.39656287]
[1724150607755,0.00124704,60773.0,60772.0,1.29790971]
[1724150608462,0.00124704,60773.0,60772.0,1.23212571]
[1724150608666,0.00124704,60773.0,60772.0,1.29790971]
[1724150609054,0.00124704,60773.0,60772.0,1.23212571]
[1724150609255,0.00124704,60773.0,60772.0,1.29790971]
[1724150609451,0.00124704,60773.0,60772.0,1.23212571]
[1724150612861,0.00124704,60773.0,60772.0,1.23212648]
[1724150615258,0.00124704,60773.0,60772.0,1.20642124]
[1724150615663,0.00124704,60773.0,60772.0,1.23212667]
[1724150618267,0.00124704,60773.0,60772.0,1.33077983]
[1724150620769,0.11504704,60773.0,60772.0,1.15119583]
[1724150621081,1.14025304,60773.0,60772.0,0.74730543]
[1724150621378,1.16691288,60773.0,60772.0,0.02570543]
[1724150621576,1.16691288,60773.0,60766.0,0.3608]
[1724150621577,0.065789,60767.0,60766.0,0.41014178]
[1724150621780,0.065789,60767.0,60766.0,0.43585472]
[1724150621781,0.179589,60767.0,60766.0,0.43585472]
[1724150622175,0.673269,60767.0,60766.0,0.43585472]
[1724150622573,0.673269,60767.0,60766.0,0.38651294]
[1724150622772,0.674269,60767.0,60766.0,0.39251294]
[1724150623380,1.08532095,60767.0,60766.0,0.39251294]
[1724150623776,1.08532095,60767.0,60766.0,0.3668]
[1724150624374,0.68632095,60767.0,60766.0,0.3698]
[1724150625481,0.75166211,60767.0,60766.0,0.3698]
[1724150626483,0.68632095,60767.0,60766.0,0.3698]
[1724150627673,0.57252095,60767.0,60766.0,0.3698]
[1724150627872,0.002,60767.0,60766.0,0.46130405]
[1724150632277,0.002,60767.0,60766.0,0.51064583]
[1724150633381,0.002,60767.0,60766.0,0.46130405]
[1724150633972,0.1158,60767.0,60766.0,0.46130405]
[1724150634177,0.1158,60767.0,60766.0,0.46130104]
[1724150635492,0.002,60767.0,60766.0,0.46130104]
[1724150636486,0.002,60767.0,60766.0,0.51064282]
[1724150637688,0.002,60767.0,60766.0,0.46130104]
[1724150638074,0.002,60767.0,60766.0,0.46130038]
[1724150638278,0.002,60767.0,60766.0,0.61130038]
[1724150643190,0.05098127,60767.0,60766.0,0.61130038]
[1724150644684,0.002,60767.0,60766.0,0.67708443]
[1724150645087,0.002,60767.0,60766.0,0.61129992]
[1724150645390,0.04922831,60773.0,60772.0,0.065784]
[1724150645689,0.04922831,60773.0,60772.0,0.50150872]
[1724150645690,0.00024704,60773.0,60772.0,0.50150872]
[1724150645889,0.00024704,60773.0,60772.0,0.79171239]
[1724150646195,0.00024704,60773.0,60772.0,0.61499266]
[1724150647290,0.00124704,60773.0,60772.0,0.62399266]
[1724150647891,0.00124704,60773.0,60772.0,0.68977666]
[1724150648193,0.00124704,60773.0,60772.0,0.84977666]
[1724150648692,0.00124704,60773.0,60772.0,0.824068]
[1724150648888,0.04898127,60782.0,60772.0,0.78398986]
[1724150649089,0.16278127,60783.0,60781.0,0.426574]
[1724150649490,0.16278127,60783.0,60782.0,0.065773]
[1724150649690,0.1138,60783.0,60782.0,0.065773]
[1724150650198,0.16283397,60783.0,60782.0,0.065773]
[1724150650394,0.16683397,60783.0,60782.0,0.065773]
[1724150650597,0.1178,60783.0,60782.0,0.065773]
[1724150650801,0.1138,60783.0,60782.0,0.065773]
[1724150650990,0.1188,60783.0,60782.0,0.065773]
[1724150651192,0.16783437,60783.0,60782.0,0.065773]
[1724150651388,0.17483437,60783.0,60782.0,0.065773]
[1724150653099,0.1258,60783.0,60782.0,0.065773]
[1724150653495,0.17483437,60783.0,60782.0,0.065773]
[1724150654189,0.012,60783.0,60782.0,0.065773]
[1724150655701,0.012,60783.0,60782.0,0.07643624]
[1724150655702,0.1258,60783.0,60782.0,0.07643624]
[1724150656400,0.17483437,60783.0,60782.0,0.07643624]
[1724150656798,0.1258,60783.0,60782.0,0.07643624]
[1724150659100,0.17485618,60783.0,60782.0,0.07643624]
[1724150659903,0.18420887,60783.0,60782.0,0.07643624]
[1724150664902,0.18420873,60783.0,60782.0,0.07643624]
[1724150665798,0.07040873,60783.0,60782.0,0.07643624]
[1724150666003,0.18420873,60783.0,60782.0,0.07643624]
[1724150666801,0.1258,60783.0,60782.0,0.43723624]
[1724150667305,0.1258,60783.0,60782.0,0.48648157]
[1724150667503,0.1258,60783.0,60782.0,0.43723624]
[1724150667806,0.012,60783.0,60782.0,0.48648886]
[1724150668706,0.012,60783.0,60782.0,0.43723624]
[1724150670009,0.012,60783.0,60782.0,0.55103624]
[1724150670307,0.06109637,60783.0,60782.0,0.6003043]
[1724150670605,0.06109637,60783.0,60782.0,0.6471043]
[1724150671098,0.06109637,60783.0,60782.0,0.59783624]
[1724150672007,0.06110552,60783.0,60782.0,0.59783624]
[1724150672204,0.00024683,60789.0,60784.0,0.065771]
[1724150672411,0.00024683,60789.0,60788.0,0.606132]
[1724150672601,0.00024683,60789.0,60788.0,0.63183721]
[1724150673000,0.00024683,60789.0,60788.0,0.83931182]
[1724150673205,0.00024683,60789.0,60788.0,0.606132]
[1724150673408,0.00224683,60789.0,60788.0,0.67973186]
[1724150673998,0.00524683,60789.0,60788.0,0.67973186]
[1724150674300,0.04912468,60794.0,60789.0,0.065765]
[1724150674501,0.0490944,60795.0,60793.0,0.4746]
[1724150674701,0.0490944,60796.0,60794.0,0.2514573]
[1724150674908,0.05839321,60795.0,60794.0,0.1601]
[1724150675113,0.03174653,60795.0,60794.0,0.18579842]
[1724150675408,0.02664651,60795.0,60794.0,0.18579842]
[1724150675708,0.12461022,60801.0,60800.0,0.065753]
[1724150675902,0.18300277,60801.0,60800.0,0.426553]
[1724150677009,0.24875477,60801.0,60800.0,0.426553]
[1724150678301,0.13495477,60801.0,60800.0,0.540353]
[1724150678502,0.1052086,60801.0,60800.0,0.540353]
[1724150678698,0.09455972,60801.0,60800.0,0.540353]
[1724150679909,0.02880772,60801.0,60800.0,0.540353]
[1724150680110,0.10020069,60801.0,60800.0,0.540353]
[1724150680305,0.12684707,60801.0,60800.0,0.540353]
[1724150680506,0.02880772,60801.0,60800.0,0.540353]
[1724150681215,0.10019668,60801.0,60800.0,0.540353]
[1724150681421,0.12684306,60801.0,60800.0,0.540353]
[1724150681914,0.00216134,60801.0,60800.0,0.540353]
[1724150684815,0.00216134,60801.0,60800.0,0.426553]
[1724150687522,0.00216134,60801.0,60800.0,0.540353]
[1724150689919,0.06750466,60801.0,60800.0,0.540353]
[1724150690126,0.06750466,60801.0,60800.0,0.901153]
[1724150690922,0.00216134,60801.0,60800.0,0.901153]
[1724150691819,0.06750466,60801.0,60800.0,0.901153]
[1724150694224,0.00216134,60801.0,60800.0,0.901153]
[1724150696220,0.00216134,60801.0,60800.0,0.179553]
[1724150696426,0.00216134,60801.0,60800.0,0.901153]
[1724150697623,0.00216134,60801.0,60800.0,0.95039578]
[1724150698029,0.00216134,60801.0,60800.0,0.901153]
[1724150698823,0.00216134,60801.0,60800.0,0.966907]
[1724150700221,0.00216134,60801.0,60800.0,1.03256444]
[1724150701225,0.00216134,60801.0,60800.0,0.966907]
[1724150702230,0.05117652,60801.0,60800.0,0.966907]
[1724150704019,0.00216134,60801.0,60800.0,0.966907]
[1724150704228,1e-08,60801.0,60800.0,1.16260216]
[1724150704425,0.112841,60812.0,60804.0,0.065749]
[1724150704426,0.04914987,60805.0,60804.0,0.065749]
[1724150704628,0.04916405,60805.0,60804.0,0.20524289]
[1724150705029,0.04916405,60805.0,60804.0,0.25194289]
[1724150705425,0.06535358,60810.0,60804.0,0.25194289]
[1724150705426,0.04916405,60806.0,60805.0,0.065748]
[1724150705727,0.04916405,60806.0,60805.0,0.540348]
[1724150707134,0.06535358,60809.0,60805.0,0.4746]
[1724150707334,0.06535358,60810.0,60809.0,0.179544]
[1724150708637,0.08535358,60810.0,60809.0,0.181544]
[1724150708836,0.02,60810.0,60809.0,0.181544]
[1724150709037,0.02,60810.0,60809.0,0.24723803]
[1724150709726,0.02,60810.0,60809.0,0.181544]
[1724150710630,0.06913704,60810.0,60809.0,0.24721913]
[1724150711031,0.02,60810.0,60809.0,0.24721913]
[1724150711533,0.02,60810.0,60809.0,0.24720962]
[1724150711734,0.02,60810.0,60809.0,0.351544]
[1724150711735,0.06913704,60810.0,60809.0,0.351544]
[1724150712039,0.07837706,60810.0,60809.0,0.247288]
[1724150712536,0.04663884,60810.0,60809.0,0.247288]
[1724150712736,0.04663884,60810.0,60809.0,0.293488]
[1724150712935,0.07837586,60810.0,60809.0,0.293488]
[1724150713743,0.06037586,60810.0,60809.0,0.291488]
[1724150714046,0.06037586,60810.0,60809.0,0.451488]
[1724150714441,0.05837586,60810.0,60809.0,0.48317849]
[1724150714639,0.05837586,60810.0,60809.0,0.48617849]
[1724150715240,0.03173702,60810.0,60809.0,0.48617849]
[1724150715637,0.03173702,60810.0,60809.0,0.394744]
[1724150715638,0.02663836,60810.0,60809.0,0.394744]
[1724150715833,0.065736,60817.0,60814.0,0.065738]
[1724150715834,0.058375,60815.0,60814.0,0.065738]
[1724150716039,0.058375,60815.0,60814.0,0.540338]
[1724150716246,0.058375,60815.0,60814.0,0.5660284]
[1724150716845,0.065734,60818.0,60817.0,0.065735]
[1724150717040,0.12410871,60818.0,60817.0,0.065735]
[1724150718039,0.06437471,60818.0,60817.0,0.066735]
[1724150718243,0.06737471,60818.0,60817.0,0.09242518]
[1724150719743,0.06737471,60818.0,60817.0,0.066735]
[1724150720133,0.009,60818.0,60817.0,0.09242518]
[1724150720333,0.009,60818.0,60817.0,0.14167305]
[1724150721141,0.05807704,60818.0,60817.0,0.09242518]
[1724150721549,0.05807704,60818.0,60817.0,0.066735]
[1724150722759,0.05807704,60818.0,60817.0,0.11598287]
[1724150722760,0.009,60818.0,60817.0,0.11598287]
[1724150723262,0.009,60818.0,60817.0,0.066735]
[1724150723652,0.009,60818.0,60817.0,0.180535]
[1724150724562,0.009,60818.0,60817.0,0.24627]
[1724150726263,0.009,60818.0,60817.0,0.180535]
[1724150727155,0.03563657,60818.0,60817.0,0.180535]
[1724150727857,0.03563657,60818.0,60817.0,0.20622369]
[1724150728165,0.03563657,60818.0,60817.0,0.182535]
[1724150728166,0.03263657,60818.0,60817.0,0.182535]
[1724150728365,0.02663657,60818.0,60817.0,0.181535]
[1724150728568,0.02663555,60818.0,60817.0,0.1158]
[1724150728760,0.18020236,60825.0,60817.0,0.20722259]
[1724150728960,0.05836862,60824.0,60818.0,0.0479]
[1724150729262,0.07654444,60825.0,60824.0,0.065728]
[1724150729465,0.13491306,60825.0,60824.0,0.065728]
[1724150730264,0.06918606,60825.0,60824.0,0.426528]
[1724150730466,0.05836862,60825.0,60824.0,0.426528]
[1724150730666,0.03173316,60825.0,60824.0,0.471828]
[1724150730869,0.04573175,60825.0,60824.0,0.472828]
[1724150731069,0.07236602,60825.0,60824.0,0.472828]
[1724150732360,0.07236602,60825.0,60824.0,0.538556]
[1724150732560,0.04063427,60825.0,60824.0,0.80051946]
[1724150732968,0.09816091,60828.0,60827.0,0.065724]
[1724150733168,0.02663007,60828.0,60827.0,0.15713273]
[1724150733362,0.065711,60839.0,60827.0,0.09140873]
[1724150733363,0.02663,60829.0,60827.0,0.09140873]
[1724150733676,0.09816091,60831.0,60827.0,0.065724]
[1724150733677,0.02663,60828.0,60827.0,0.065724]
[1724150733863,0.09816091,60831.0,60830.0,0.065721]
[1724150734065,0.09816091,60831.0,60830.0,0.56600331]
[1724150735169,0.065711,60839.0,60833.0,0.065718]
[1724150735170,0.04906387,60834.0,60833.0,0.065718]
[1724150735369,0.04906387,60838.0,60836.0,0.065714]
[1724150735575,0.065711,60839.0,60837.0,0.1138]
[1724150735576,0.11477487,60839.0,60837.0,0.1138]
[1724150736074,0.04906387,60838.0,60837.0,0.1138]
[1724150736266,0.12553058,60839.0,60837.0,0.179514]
[1724150736464,0.12553058,60839.0,60838.0,0.065712]
[1724150736863,0.05981958,60839.0,60838.0,0.065712]
[1724150737376,0.01275571,60839.0,60838.0,0.065712]
[1724150738259,0.01275571,60839.0,60838.0,0.066712]
[1724150739071,0.01275571,60839.0,60838.0,0.001]
[1724150739072,0.19226671,60839.0,60838.0,0.001]
[1724150739372,0.25797771,60839.0,60838.0,0.001]
[1724150739571,0.25797771,60839.0,60836.0,0.3608]
[1724150739572,0.131428,60837.0,60836.0,0.3608]
[1724150739773,0.065723,60828.0,60827.0,0.04915038]
[1724150740071,0.1138,60828.0,60826.0,0.426524]
[1724150740262,0.065724,60827.0,60826.0,0.3608]
[1724150740464,0.065729,60823.0,60822.0,0.3608]
[1724150740673,0.179529,60823.0,60822.0,0.3608]
[1724150740872,1.072769,60823.0,60822.0,0.3608]
[1724150741673,0.672769,60823.0,60822.0,0.3608]
[1724150741976,0.179529,60823.0,60822.0,0.3708]
[1724150742273,0.20616549,60823.0,60822.0,0.3708]
[1724150742869,0.179529,60823.0,60822.0,0.3708]
[1724150743066,0.20616535,60823.0,60822.0,0.3708]
[1724150743475,0.26122486,60823.0,60822.0,0.3708]
[1724150743674,0.179529,60823.0,60822.0,0.3708]
[1724150743977,0.26122568,60823.0,60822.0,0.3708]
[1724150744275,0.179529,60823.0,60822.0,0.3708]
[1724150744462,0.20616498,60823.0,60822.0,0.3708]
[1724150744876,0.179529,60823.0,60822.0,0.3708]
[1724150745071,0.20616497,60823.0,60822.0,0.3708]
[1724150745573,0.179529,60823.0,60822.0,0.3708]
[1724150745874,0.21704793,60823.0,60822.0,0.3708]
[1724150746179,0.08171346,60824.0,60823.0,0.065729]
[1724150746367,0.09816091,60829.0,60823.0,0.065729]
[1724150746368,0.08171346,60826.0,60823.0,0.1599]
[1724150746568,0.27768191,60831.0,60823.0,0.1599]
[1724150746569,0.08171346,60827.0,60826.0,0.065725]
[1724150746870,0.179523,60829.0,60827.0,0.065723]
[1724150747073,0.02663371,60828.0,60827.0,0.065723]
[1724150747372,0.09235671,60828.0,60827.0,0.065723]
[1724150747776,0.09235757,60828.0,60827.0,0.426523]
[1724150748174,0.09235757,60828.0,60827.0,0.427523]
[1724150749177,0.09235745,60828.0,60827.0,0.427523]
[1724150749681,0.09435745,60828.0,60827.0,0.427523]
[1724150749978,0.09435745,60828.0,60827.0,0.066723]
[1724150753379,1.08501315,60828.0,60827.0,0.001]
[1724150753678,1.24853945,60828.0,60827.0,0.001]
[1724150753876,1.36301481,60828.0,60827.0,0.001]
[1724150754281,1.24853945,60828.0,60827.0,0.001]
[1724150754474,1.29325348,60828.0,60827.0,0.001]
[1724150755375,1.42408438,60828.0,60827.0,0.001]
[1724150755580,1.35502799,60828.0,60827.0,0.001]
[1724150757285,1.31485895,60828.0,60827.0,0.001]
[1724150757473,1.21680529,60828.0,60827.0,0.001]
[1724150757875,0.81680529,60828.0,60827.0,0.001]
[1724150758070,1.21680529,60828.0,60827.0,0.001]
[1724150759678,1.57760529,60828.0,60827.0,0.001]
[1724150761781,1.57760849,60828.0,60827.0,0.001]
[1724150761978,5.34760849,60828.0,60827.0,0.001]
[1724150762182,5.320969,60828.0,60827.0,0.001]
[1724150764286,1.550969,60828.0,60827.0,0.001]
[1724150764480,1.57760849,60828.0,60827.0,0.001]
[1724150765276,1.71608529,60828.0,60827.0,0.00085112]
[1724150766382,1.71611017,60828.0,60827.0,0.00085112]
[1724150766589,1.31611017,60828.0,60827.0,0.00085112]
[1724150768085,1.71611017,60828.0,60827.0,0.00085112]
[1724150768383,1.49602761,60828.0,60827.0,0.00085112]
[1724150768885,1.89602761,60828.0,60827.0,0.00085112]
[1724150769086,1.49602761,60828.0,60827.0,0.00085112]
[1724150769283,1.5793045,60828.0,60827.0,0.00085112]
[1724150769484,1.39938706,60828.0,60827.0,0.00085112]
[1724150770386,1.79938706,60828.0,60827.0,0.00085112]
[1724150770882,1.63424589,60828.0,60827.0,0.00085112]
[1724150771085,1.79951191,60828.0,60827.0,0.00085112]
[1724150772078,1.31623502,60828.0,60827.0,0.00085112]
[1724150772278,1.12810849,60828.0,60827.0,0.00085112]
[1724150777595,1.07980849,60828.0,60827.0,0.00085112]
[1724150778190,0.70040849,60828.0,60827.0,0.00085112]
[1724150780299,0.77740173,60828.0,60827.0,0.00071816]
[1724150782393,5.44060173,60828.0,60827.0,0.00071816]
[1724150782599,5.44060173,60828.0,60802.0,0.3261]
[1724150782600,0.131468,60818.0,60802.0,0.3261]
[1724150782797,0.065743,60810.0,60809.0,0.0477]
[1724150782999,0.23791787,60810.0,60809.0,0.0477]
[1724150783201,0.28317573,60810.0,60809.0,0.0477]